bitfinex/quotes_BTCUSD_20240717
["timestamp","ask_amount","ask_price","bid_price","bid_amount"]
[1721210471505,3.51885747,65404.0,65403.0,2.002924]
[1721210472881,4.66106747,65404.0,65403.0,2.002924]
[1721210473418,4.66106747,65404.0,65403.0,2.00137968]
[1721210473821,4.69976659,65404.0,65403.0,2.00137968]
[1721210474026,3.59530898,65404.0,65403.0,2.00137968]
[1721210474226,4.10521147,65404.0,65403.0,2.00137968]
[1721210474625,4.1046804,65404.0,65403.0,2.00137968]
[1721210475288,4.08069541,65404.0,65403.0,2.00137968]
[1721210476608,4.07924289,65404.0,65403.0,2.00137968]
[1721210477930,4.07857113,65404.0,65403.0,2.00137968]
[1721210481116,4.03919945,65404.0,65403.0,2.00137968]
[1721210481270,4.15391133,65404.0,65403.0,2.00137968]
[1721210482071,4.11615894,65404.0,65403.0,2.00137968]
[1721210482296,4.15391133,65404.0,65403.0,2.00137968]
[1721210482664,4.15391133,65404.0,65403.0,1.24421968]
[1721210482860,4.11615894,65404.0,65403.0,0.73867968]
[1721210483068,4.11615894,65404.0,65403.0,0.73767968]
[1721210483069,4.31511659,65404.0,65403.0,0.73767968]
[1721210483422,4.31438822,65404.0,65403.0,0.73767968]
[1721210483578,4.31438848,65404.0,65403.0,0.58477968]
[1721210483780,4.31738848,65404.0,65403.0,0.58577968]
[1721210484058,4.31738848,65404.0,65403.0,0.58477968]
[1721210484443,4.31738848,65404.0,65403.0,0.55519968]
[1721210484444,4.20640471,65404.0,65403.0,0.55519968]
[1721210484647,4.32199827,65404.0,65403.0,0.43286768]
[1721210484796,4.34040018,65404.0,65403.0,0.43286768]
[1721210484989,4.34340018,65404.0,65403.0,0.43386768]
[1721210485244,4.30369139,65404.0,65403.0,0.43386768]
[1721210485447,4.30369139,65404.0,65403.0,0.40227568]
[1721210485448,4.30069139,65404.0,65403.0,0.40227568]
[1721210485677,4.34040018,65404.0,65403.0,0.19803891]
[1721210485788,4.31469139,65404.0,65403.0,0.19803891]
[1721210485988,4.35440018,65404.0,65403.0,0.19803891]
[1721210486196,4.34840018,65404.0,65403.0,0.19603891]
[1721210486591,4.33440018,65404.0,65403.0,0.10425991]
[1721210486780,1.98846,65377.0,65376.0,0.048307]
[1721210486982,2.34660174,65377.0,65376.0,0.048307]
[1721210487571,2.02820179,65376.0,65375.0,1e-06]
[1721210487776,2.34804823,65376.0,65375.0,1e-06]
[1721210487985,2.34527726,65376.0,65375.0,1e-06]
[1721210488584,1.988707,65369.0,65368.0,1e-06]
[1721210488786,0.458988,65361.0,65349.0,0.01029121]
[1721210488987,1.70117838,65361.0,65360.0,1e-06]
[1721210489188,2.35215216,65361.0,65360.0,1e-06]
[1721210490373,2.38739154,65361.0,65360.0,1e-06]
[1721210490621,2.38739154,65361.0,65360.0,0.015001]
[1721210490622,2.35415216,65361.0,65360.0,0.015001]
[1721210490953,2.39533826,65361.0,65360.0,1e-06]
[1721210491276,2.42851559,65361.0,65360.0,1e-06]
[1721210491513,2.42851559,65361.0,65347.0,0.009196]
[1721210491514,0.306002,65359.0,65347.0,0.009196]
[1721210491757,0.459079,65348.0,65347.0,0.009196]
[1721210491948,0.71346074,65348.0,65347.0,0.009196]
[1721210492147,1.63161974,65348.0,65347.0,0.009196]
[1721210492351,1.63161974,65348.0,65342.0,1e-06]
[1721210492352,1.071269,65343.0,65342.0,1e-06]
[1721210492557,1.63172774,65343.0,65342.0,1e-06]
[1721210492765,1.98370354,65343.0,65342.0,1e-06]
[1721210492971,2.28978054,65343.0,65342.0,1e-06]
[1721210494001,2.29878054,65343.0,65342.0,1e-06]
[1721210494225,0.03970879,65341.0,65336.0,5e-07]
[1721210494423,0.49886579,65337.0,65336.0,5e-07]
[1721210494666,0.03970879,65335.0,65328.0,0.0627]
[1721210494871,0.76532,65332.0,65328.0,0.0627]
[1721210495046,0.153071,65329.0,65328.0,0.0627]
[1721210495264,1.32842709,65329.0,65328.0,0.00147]
[1721210495384,1.32842709,65329.0,65328.0,1e-06]
[1721210495590,1.96616935,65329.0,65328.0,1e-06]
[1721210495799,2.24685309,65329.0,65328.0,1e-06]
[1721210496155,1.94071109,65329.0,65328.0,1e-06]
[1721210496494,1.17544533,65329.0,65328.0,0.23309221]
[1721210496696,1.17544533,65329.0,65328.0,0.25609221]
[1721210497292,1.07544533,65329.0,65328.0,0.25609221]
[1721210497631,1.07544533,65329.0,65328.0,0.33349221]
[1721210498269,1.07144533,65329.0,65328.0,0.33349221]
[1721210498427,1.07144533,65329.0,65328.0,0.39609221]
[1721210498629,0.76930333,65329.0,65328.0,0.39709221]
[1721210498830,0.459194,65332.0,65331.0,0.01029121]
[1721210499048,0.765324,65332.0,65331.0,0.03329121]
[1721210499268,1.071454,65332.0,65331.0,0.03329121]
[1721210499815,1.071454,65332.0,65331.0,0.07679121]
[1721210501000,0.765324,65332.0,65331.0,0.07679121]
[1721210501197,0.765324,65332.0,65331.0,0.11456791]
[1721210501437,0.306085,65342.0,65335.0,0.01029121]
[1721210501662,0.936215,65343.0,65342.0,0.05389121]
[1721210501827,0.765192,65343.0,65342.0,0.05389121]
[1721210502035,1.071269,65343.0,65342.0,0.07689121]
[1721210502408,0.765192,65343.0,65342.0,0.07689121]
[1721210503029,0.459115,65343.0,65342.0,0.30838033]
[1721210503232,0.936137,65354.0,65353.0,0.01029121]
[1721210503432,0.76900371,65369.0,65368.0,0.01029121]
[1721210503633,1.070842,65369.0,65368.0,0.01029121]
[1721210503822,0.764887,65369.0,65368.0,0.03329121]
[1721210504197,0.458932,65369.0,65368.0,0.05890033]
[1721210504369,0.4771,65378.0,65370.0,0.05389121]
[1721210504370,0.305946,65372.0,65370.0,0.05389121]
[1721210504579,0.458837,65383.0,65382.0,0.0436]
[1721210504799,0.764726,65383.0,65382.0,0.0436]
[1721210505000,0.764782,65378.0,65377.0,0.0436]
[1721210505208,1.070695,65378.0,65377.0,0.0436]
[1721210505956,1.070695,65378.0,65377.0,0.05389121]
[1721210506835,1.074695,65378.0,65377.0,0.05389121]
[1721210507454,1.174695,65378.0,65377.0,0.05389121]
[1721210507879,1.177695,65378.0,65377.0,0.05389121]
[1721210509484,1.173695,65378.0,65377.0,0.05389121]
[1721210509690,1.170695,65378.0,65377.0,0.05389121]
[1721210509893,1.173695,65378.0,65377.0,0.05389121]
[1721210510452,1.173695,65378.0,65377.0,0.07689121]
[1721210510856,1.170695,65378.0,65377.0,0.07689121]
[1721210511265,1.172695,65378.0,65377.0,0.08458033]
[1721210511393,1.170695,65378.0,65377.0,0.08458033]
[1721210511805,1.171695,65378.0,65377.0,0.08858033]
[1721210512005,1.171695,65378.0,65377.0,0.08089121]
[1721210512223,1.173695,65378.0,65377.0,0.08089121]
[1721210512619,1.171695,65378.0,65377.0,0.08089121]
[1721210513041,1.171695,65378.0,65377.0,0.08589121]
[1721210513447,0.459869,65378.0,65377.0,0.08589121]
[1721210513621,0.459869,65378.0,65377.0,0.11676033]
[1721210514146,0.458869,65378.0,65377.0,0.11276033]
[1721210514349,0.764782,65378.0,65377.0,0.11276033]
[1721210514502,0.765782,65378.0,65377.0,0.11676033]
[1721210514704,0.459869,65378.0,65377.0,0.11676033]
[1721210515757,0.001,65378.0,65377.0,0.11176033]
[1721210516135,0.002,65378.0,65377.0,0.11976033]
[1721210516756,0.002,65378.0,65377.0,0.11176033]
[1721210516956,0.001,65378.0,65377.0,0.11176033]
[1721210517155,0.002,65378.0,65377.0,0.11676033]
[1721210517357,0.001,65378.0,65377.0,0.11676033]
[1721210517592,0.001,65378.0,65377.0,0.10776033]
[1721210517790,0.001,65378.0,65377.0,0.11576033]
[1721210518039,0.001,65378.0,65377.0,0.09746912]
[1721210518403,0.002,65378.0,65377.0,0.11976033]
[1721210519190,0.155956,65378.0,65377.0,0.09989121]
[1721210519635,0.003,65378.0,65377.0,0.09989121]
[1721210519883,0.155956,65378.0,65377.0,0.09989121]
[1721210520095,0.461869,65378.0,65377.0,0.09989121]
[1721210521853,0.003,65378.0,65377.0,0.09989121]
[1721210522050,0.003,65378.0,65377.0,0.13216033]
[1721210522991,0.003,65378.0,65377.0,0.08216033]
[1721210527513,0.003,65378.0,65377.0,0.78216033]
[1721210531622,0.003,65378.0,65377.0,0.91010548]
[1721210531801,0.00384,65378.0,65377.0,0.91010548]
[1721210534665,0.00384,65378.0,65377.0,0.91010547]
[1721210536231,0.768622,65378.0,65377.0,0.91010547]
[1721210536652,0.768622,65378.0,65377.0,0.17783635]
[1721210536853,1.445648,65378.0,65377.0,0.03421521]
[1721210537053,1.445648,65378.0,65377.0,0.023924]
[1721210537054,1.621548,65378.0,65377.0,0.023924]
[1721210537690,1.618548,65378.0,65377.0,0.000924]
[1721210538129,1.618548,65378.0,65377.0,0.009924]
[1721210538361,1.618548,65378.0,65377.0,0.004924]
[1721210538570,1.618548,65378.0,65377.0,0.01521521]
[1721210538717,1.618548,65378.0,65377.0,0.01621521]
[1721210538718,1.312635,65378.0,65377.0,0.01621521]
[1721210538919,1.312635,65378.0,65377.0,0.02021521]
[1721210539554,1.312635,65378.0,65377.0,0.01621521]
[1721210540147,1.312635,65378.0,65377.0,0.01121521]
[1721210540148,1.618548,65378.0,65377.0,0.01121521]
[1721210540583,1.618548,65378.0,65377.0,0.000924]
[1721210540820,1.618548,65378.0,65377.0,0.01121521]
[1721210541032,1.618548,65378.0,65377.0,0.01921521]
[1721210541345,1.618548,65378.0,65377.0,0.01521521]
[1721210541969,1.618548,65378.0,65377.0,0.01121521]
[1721210542144,1.618548,65378.0,65377.0,0.01521521]
[1721210542975,1.302335,65378.0,65377.0,0.01521521]
[1721210543179,1.302335,65378.0,65377.0,0.01121521]
[1721210543950,1.302335,65378.0,65377.0,0.01921521]
[1721210544567,1.302335,65378.0,65377.0,0.01521521]
[1721210544973,1.302335,65378.0,65377.0,0.01921521]
[1721210546316,1.608248,65378.0,65377.0,0.01921521]
[1721210546905,1.302335,65378.0,65377.0,0.01921521]
[1721210547285,1.608248,65378.0,65377.0,0.01921521]
[1721210547951,1.302335,65378.0,65377.0,0.01921521]
[1721210551111,1.608248,65378.0,65377.0,0.01921521]
[1721210552456,1.608248,65378.0,65377.0,0.008924]
[1721210552685,1.608248,65378.0,65377.0,0.01921521]
[1721210553422,1.608248,65378.0,65377.0,0.008924]
[1721210553623,1.608248,65378.0,65377.0,0.01921521]
[1721210554541,1.608248,65378.0,65377.0,0.008924]
[1721210557149,1.608248,65378.0,65365.0,0.01029121]
[1721210557150,0.147,65367.0,65365.0,0.01029121]
[1721210557455,0.305983,65363.0,65359.0,0.7]
[1721210557658,0.764992,65360.0,65359.0,0.7]
[1721210557865,0.764992,65360.0,65358.0,0.01182103]
[1721210557866,0.459003,65359.0,65358.0,0.00152982]
[1721210558046,1.071007,65359.0,65358.0,0.01182103]
[1721210558235,1.171007,65359.0,65358.0,0.01182103]
[1721210558557,1.477009,65359.0,65358.0,0.01182103]
[1721210559299,1.171007,65359.0,65358.0,0.01482103]
[1721210559530,0.153001,65359.0,65358.0,0.01482103]
[1721210559852,0.153001,65359.0,65358.0,0.06658313]
[1721210559985,0.305996,65361.0,65358.0,0.06658313]
[1721210559986,0.152999,65360.0,65359.0,0.01029121]
[1721210560177,0.458996,65360.0,65359.0,0.25609121]
[1721210561190,0.458996,65360.0,65359.0,0.38314802]
[1721210561553,0.459996,65360.0,65359.0,0.38714802]
[1721210561717,0.459996,65360.0,65359.0,0.44240949]
[1721210561922,0.459996,65360.0,65359.0,0.32435268]
[1721210561923,0.460996,65360.0,65359.0,0.32435268]
[1721210562126,0.460996,65360.0,65359.0,1.02435268]
[1721210562536,0.460996,65360.0,65359.0,1.15141137]
[1721210562757,0.460996,65360.0,65359.0,1.15141061]
[1721210563132,0.460996,65360.0,65359.0,1.02435268]
[1721210563378,0.460996,65360.0,65359.0,1.30579311]
[1721210563379,0.002,65360.0,65359.0,1.30579311]
[1721210563883,0.002,65360.0,65359.0,0.60579297]
[1721210565203,0.002,65360.0,65359.0,0.60671697]
[1721210566174,0.154998,65360.0,65359.0,0.60671697]
[1721210567062,0.154998,65360.0,65359.0,0.47965842]
[1721210567251,1.072989,65360.0,65359.0,0.19624355]
[1721210567405,1.072989,65360.0,65359.0,0.02421521]
[1721210567589,1.378986,65360.0,65359.0,0.013924]
[1721210567787,1.558686,65360.0,65359.0,0.02421521]
[1721210572059,1.621186,65360.0,65359.0,0.02421521]
[1721210582281,1.621186,65360.0,65359.0,0.04721521]
[1721210582282,1.172989,65360.0,65359.0,0.04721521]
[1721210585733,1.15856987,65360.0,65359.0,0.04721521]
[1721210596407,0.14057887,65360.0,65359.0,0.04721521]
[1721210596595,0.14057887,65360.0,65359.0,0.20183891]
[1721210596796,0.0652,65368.0,65359.0,0.20183891]
[1721210596797,0.37116,65368.0,65367.0,0.01029121]
[1721210596996,0.8301,65368.0,65367.0,0.01029121]
[1721210597376,1.13606,65368.0,65367.0,0.01029121]
[1721210597989,1.13606,65368.0,65362.0,0.01029121]
[1721210597990,0.305983,65363.0,65362.0,0.01029121]
[1721210598242,0.603495,65360.0,65359.0,0.000924]
[1721210598439,1.06387374,65360.0,65359.0,0.000924]
[1721210598772,1.91619507,65360.0,65359.0,0.000924]
[1721210598985,2.22219207,65360.0,65359.0,0.000924]
[1721210599355,2.26080255,65360.0,65359.0,0.000924]
[1721210599566,2.1058047,65360.0,65359.0,0.000924]
[1721210600318,1.377009,65359.0,65358.0,0.00152982]
[1721210600433,2.14108925,65359.0,65358.0,0.00152982]
[1721210601699,2.1023327,65359.0,65358.0,0.00152982]
[1721210601899,2.14344347,65359.0,65358.0,0.00152982]
[1721210602943,2.14644347,65359.0,65358.0,0.00152982]
[1721210603702,2.1073327,65359.0,65358.0,0.00152982]
[1721210603919,2.14711552,65359.0,65358.0,0.00152982]
[1721210604363,2.14711552,65359.0,65343.0,0.01029121]
[1721210604364,1.519924,65344.0,65343.0,0.01029121]
[1721210604499,0.29564,65342.0,65341.0,0.01029121]
[1721210604701,0.907802,65342.0,65341.0,0.01029121]
[1721210604985,1.619964,65342.0,65341.0,0.01029121]
[1721210606131,1.619964,65342.0,65341.0,0.01329121]
[1721210607253,1.619964,65342.0,65341.0,0.01529121]
[1721210607485,1.619964,65342.0,65341.0,0.01229121]
[1721210607694,1.619964,65342.0,65341.0,0.01029121]
[1721210607869,1.619964,65342.0,65341.0,0.01229121]
[1721210608074,1.619964,65342.0,65341.0,0.01329121]
[1721210608317,1.619964,65342.0,65341.0,0.01129121]
[1721210608476,1.619964,65342.0,65341.0,0.01429121]
[1721210609280,1.619964,65342.0,65341.0,0.01329121]
[1721210609927,1.619964,65342.0,65341.0,0.01529121]
[1721210610114,2.08042674,65342.0,65341.0,0.005]
[1721210610333,2.08042674,65342.0,65329.0,0.01029121]
[1721210610334,0.1382,65340.0,65329.0,0.01029121]
[1721210610545,0.03970879,65346.0,65329.0,0.01029121]
[1721210610546,0.153069,65330.0,65329.0,0.01029121]
[1721210610700,1.309683,65330.0,65329.0,0.01029121]
[1721210611279,1.309683,65330.0,65325.0,0.00015]
[1721210611280,0.153078,65326.0,65325.0,0.00015]
[1721210611488,0.69783402,65326.0,65325.0,0.01044121]
[1721210611694,1.613702,65326.0,65325.0,0.01044121]
[1721210612530,1.613702,65326.0,65325.0,0.00015]
[1721210612531,2.07423974,65326.0,65325.0,0.00015]
[1721210613222,2.07523974,65326.0,65325.0,0.00015]
[1721210613834,2.07723974,65326.0,65325.0,0.00015]
[1721210614236,2.07623974,65326.0,65325.0,0.00015]
[1721210615237,2.07723974,65326.0,65325.0,0.00015]
[1721210617642,2.07723974,65326.0,65325.0,0.01044121]
[1721210618024,2.07723974,65326.0,65325.0,0.00015]
[1721210623531,1.77108374,65326.0,65325.0,0.01044121]
[1721210623737,1.174546,65326.0,65325.0,0.01044121]
[1721210624143,0.003,65326.0,65325.0,0.01134121]
[1721210624348,0.003,65326.0,65325.0,0.13493012]
[1721210624349,0.156078,65326.0,65325.0,0.13493012]
[1721210624491,0.462234,65326.0,65325.0,0.13493012]
[1721210624698,0.76839,65326.0,65325.0,0.13493012]
[1721210625046,0.76839,65326.0,65325.0,0.05775533]
[1721210625198,0.76839,65326.0,65325.0,0.03434121]
[1721210625620,0.76539,65326.0,65325.0,0.03434121]
[1721210626025,0.001,65326.0,65325.0,0.04234121]
[1721210626349,0.001,65326.0,65325.0,0.119516]
[1721210626548,0.001,65326.0,65325.0,0.1547476]
[1721210626722,0.002,65326.0,65325.0,0.1647476]
[1721210627451,0.002,65326.0,65325.0,0.08757281]
[1721210628266,0.155078,65326.0,65325.0,0.08757281]
[1721210628969,0.155078,65326.0,65325.0,0.08849681]
[1721210629211,0.461234,65326.0,65325.0,0.08849681]
[1721210629385,0.76739,65326.0,65325.0,0.04836521]
[1721210629586,1.073546,65326.0,65325.0,0.04836521]
[1721210630254,1.379702,65326.0,65325.0,0.02536521]
[1721210630430,1.479702,65326.0,65325.0,0.02536521]
[1721210633009,1.558802,65326.0,65325.0,0.02536521]
[1721210633409,1.619902,65326.0,65325.0,0.02536521]
[1721210635717,1.479702,65326.0,65325.0,0.02536521]
[1721210636338,1.173546,65326.0,65325.0,0.02536521]
[1721210639615,0.86739,65326.0,65325.0,0.02536521]
[1721210639813,0.86739,65326.0,65325.0,0.04836521]
[1721210640931,0.461234,65326.0,65325.0,0.17639563]
[1721210641285,0.76739,65326.0,65325.0,0.21631519]
[1721210641515,0.76739,65326.0,65325.0,0.21541519]
[1721210641713,0.76739,65326.0,65325.0,0.08828477]
[1721210642705,0.461234,65326.0,65325.0,0.16545956]
[1721210642915,0.461234,65326.0,65325.0,0.08828477]
[1721210643172,0.76739,65326.0,65325.0,0.21541356]
[1721210643469,0.76739,65326.0,65325.0,0.08828477]
[1721210643812,1.073546,65326.0,65325.0,0.04836521]
[1721210644036,1.135046,65326.0,65325.0,0.04836521]
[1721210644234,1.135046,65326.0,65325.0,0.02536521]
[1721210644235,1.214446,65326.0,65325.0,0.02536521]
[1721210645871,1.520602,65326.0,65325.0,0.02536521]
[1721210646813,1.214446,65326.0,65325.0,0.02536521]
[1721210647395,1.520602,65326.0,65325.0,0.02536521]
[1721210648417,1.520602,65326.0,65325.0,0.015074]
[1721210648418,1.67498374,65326.0,65325.0,0.015074]
[1721210648634,1.77498374,65326.0,65325.0,0.015074]
[1721210649042,2.08113974,65326.0,65325.0,0.015074]
[1721210649402,2.08013974,65326.0,65325.0,0.005074]
[1721210649830,2.08313974,65326.0,65325.0,0.005074]
[1721210650397,1.77598374,65326.0,65325.0,0.01136521]
[1721210650579,1.77798374,65326.0,65325.0,0.001074]
[1721210651033,2.08413974,65326.0,65325.0,0.001074]
[1721210651471,2.39029574,65326.0,65325.0,1e-06]
[1721210651694,2.14919613,65326.0,65325.0,1e-06]
[1721210652278,2.45535213,65326.0,65325.0,1e-06]
[1721210652486,2.45235213,65326.0,65325.0,1e-06]
[1721210652998,2.46435213,65326.0,65325.0,0.001001]
[1721210653213,2.15819613,65326.0,65325.0,0.001001]
[1721210653348,2.15619613,65326.0,65325.0,0.001001]
[1721210653688,2.16819613,65326.0,65325.0,0.001001]
[1721210654095,2.47435213,65326.0,65325.0,0.001001]
[1721210654497,2.46235213,65326.0,65325.0,1e-06]
[1721210654705,2.15619613,65326.0,65325.0,1e-06]
[1721210654882,2.16819613,65326.0,65325.0,0.001001]
[1721210655286,2.16819613,65326.0,65325.0,1e-06]
[1721210655610,2.43325122,65326.0,65325.0,1e-06]
[1721210655823,2.47494849,65326.0,65325.0,1e-06]
[1721210656469,2.5663464,65326.0,65325.0,1e-06]
[1721210656866,2.47494849,65326.0,65325.0,1e-06]
[1721210657359,2.5663464,65326.0,65325.0,1e-06]
[1721210657494,2.47494849,65326.0,65325.0,1e-06]
[1721210658949,2.56591458,65326.0,65325.0,1e-06]
[1721210659105,2.47461424,65326.0,65325.0,1e-06]
[1721210659729,2.16845824,65326.0,65325.0,1e-06]
[1721210660570,2.1687232,65326.0,65325.0,1e-06]
[1721210660887,2.12709522,65326.0,65325.0,1e-06]
[1721210662002,1.66655748,65326.0,65325.0,0.01029221]
[1721210662228,1.642602,65326.0,65325.0,0.01121621]
[1721210664537,1.642602,65326.0,65325.0,0.000925]
[1721210664752,1.642602,65326.0,65325.0,0.01121621]
[1721210666395,1.642602,65326.0,65325.0,1e-06]
[1721210666396,2.10313974,65326.0,65325.0,1e-06]
[1721210666600,2.47455391,65326.0,65325.0,1e-06]
[1721210668441,2.5142627,65326.0,65325.0,1e-06]
[1721210669147,2.51478586,65326.0,65325.0,1e-06]
[1721210669326,2.50278586,65326.0,65325.0,1e-06]
[1721210669526,1.684039,65319.0,65318.0,0.025]
[1721210669732,2.10397746,65319.0,65318.0,0.025]
[1721210670249,2.41016646,65319.0,65318.0,0.025]
[1721210672069,2.42816646,65319.0,65318.0,0.025]
[1721210672470,2.42816646,65319.0,65318.0,0.03529121]
[1721210672670,1.49585,65319.0,65318.0,0.03529121]
[1721210672873,2.09782074,65319.0,65318.0,0.025]
[1721210673121,2.09782074,65319.0,65311.0,0.009207]
[1721210673122,1.377999,65312.0,65311.0,0.009207]
[1721210673308,1.63238074,65312.0,65311.0,0.01949821]
[1721210673515,1.93860274,65312.0,65311.0,0.01949821]
[1721210673897,1.93860274,65312.0,65311.0,0.009207]
[1721210674100,2.08210274,65312.0,65311.0,0.009207]
[1721210674767,2.08310274,65312.0,65311.0,0.009207]
[1721210675557,2.08410274,65312.0,65311.0,0.009207]
[1721210677118,2.08410274,65312.0,65311.0,0.01949821]
[1721210677831,2.08410274,65312.0,65311.0,0.009207]
[1721210678011,2.08410274,65312.0,65311.0,0.01949821]
[1721210683460,2.10806125,65312.0,65311.0,0.01949821]
[1721210683700,1.63438074,65312.0,65311.0,0.01949821]
[1721210683918,1.479999,65312.0,65311.0,0.01949821]
[1721210684989,1.173777,65312.0,65311.0,0.01949821]
[1721210685736,1.172777,65312.0,65311.0,0.01949821]
[1721210686179,1.171777,65312.0,65311.0,0.01949821]
[1721210686391,1.172777,65312.0,65311.0,0.01949821]
[1721210686795,1.171777,65312.0,65311.0,0.01949821]
[1721210687046,1.172777,65312.0,65311.0,0.01949821]
[1721210687247,1.173777,65312.0,65311.0,0.01949821]
[1721210687780,1.172777,65312.0,65311.0,0.01949821]
[1721210688008,1.173777,65312.0,65311.0,0.01949821]
[1721210691047,1.479999,65312.0,65311.0,0.01949821]
[1721210691251,1.94060274,65312.0,65311.0,0.01949821]
[1721210691426,1.94060274,65312.0,65311.0,0.009207]
[1721210691427,2.02260274,65312.0,65311.0,0.009207]
[1721210691625,2.04656058,65312.0,65311.0,0.009207]
[1721210692048,2.04556058,65312.0,65311.0,0.009207]
[1721210692570,2.04456058,65312.0,65311.0,0.009207]
[1721210692766,2.04556058,65312.0,65311.0,0.009207]
[1721210693269,2.04556058,65312.0,65311.0,0.01949821]
[1721210693451,2.04556058,65312.0,65311.0,0.009207]
[1721210694076,2.04656058,65312.0,65311.0,0.009207]
[1721210697498,2.04656058,65312.0,65311.0,0.01949821]
[1721210697908,1.89217884,65312.0,65311.0,0.01949821]
[1721210698107,1.50395684,65312.0,65311.0,0.01949821]
[1721210698880,1.50295684,65312.0,65311.0,0.01949821]
[1721210699244,1.50195684,65312.0,65311.0,0.01949821]
[1721210701081,1.50195684,65312.0,65311.0,0.009207]
[1721210701292,1.64545684,65312.0,65311.0,0.01949821]
[1721210701504,1.64545684,65312.0,65311.0,0.009207]
[1721210701711,1.64545684,65312.0,65311.0,0.01949821]
[1721210702154,1.64545684,65312.0,65309.0,1e-06]
[1721210702155,1.990501,65310.0,65309.0,1e-06]
[1721210702357,0.600175,65306.0,65305.0,1e-06]
[1721210702560,1.4322881,65306.0,65305.0,1e-06]
[1721210702760,0.765765,65294.0,65293.0,1e-06]
[1721210702940,1.7444901,65294.0,65293.0,1e-06]
[1721210703136,2.1507961,65294.0,65293.0,1e-06]
[1721210703334,2.4571021,65294.0,65293.0,1e-06]
[1721210703551,2.45791544,65294.0,65293.0,1e-06]
[1721210703760,2.45791544,65294.0,65292.0,1e-06]
[1721210703761,1.68471,65293.0,65292.0,1e-06]
[1721210704114,2.52408688,65293.0,65292.0,1e-06]
[1721210704288,2.58898688,65293.0,65292.0,1e-06]
[1721210704496,2.58898688,65293.0,65276.0,2.1e-07]
[1721210704497,0.0649,65289.0,65276.0,2.1e-07]
[1721210704698,0.459607,65273.0,65272.0,0.7]
[1721210704902,0.459607,65273.0,65271.0,0.0147095]
[1721210704903,0.153205,65272.0,65271.0,0.0147095]
[1721210705068,1.32681674,65272.0,65271.0,0.0147095]
[1721210705267,1.478845,65272.0,65271.0,0.0147095]
[1721210705518,0.866025,65272.0,65271.0,0.0147095]
[1721210706047,1.172435,65272.0,65271.0,0.0147095]
[1721210706273,1.32681674,65272.0,65271.0,0.0147095]
[1721210706682,1.63722674,65272.0,65271.0,0.0147095]
[1721210707622,2.09053674,65272.0,65271.0,0.0147095]
[1721210707827,2.08653674,65272.0,65271.0,0.0147095]
[1721210708052,1.78012674,65272.0,65271.0,0.0147095]
[1721210708291,1.78212674,65272.0,65271.0,0.0147095]
[1721210708598,1.78012674,65272.0,65271.0,0.0147095]
[1721210708815,1.77812674,65272.0,65271.0,0.0147095]
[1721210709079,1.79212674,65272.0,65271.0,0.0147095]
[1721210709681,1.77812674,65272.0,65271.0,0.0147095]
[1721210709881,1.79012674,65272.0,65271.0,0.0147095]
[1721210710095,1.78412674,65272.0,65271.0,0.0147095]
[1721210710503,2.09953674,65272.0,65271.0,0.0147095]
[1721210710907,2.09053674,65272.0,65271.0,0.0147095]
[1721210711361,2.10453674,65272.0,65271.0,0.0147095]
[1721210711489,2.08453674,65272.0,65271.0,0.0147095]
[1721210711700,1.78712674,65272.0,65271.0,0.0147095]
[1721210711928,1.378885,65270.0,65269.0,5e-07]
[1721210712090,1.63326674,65270.0,65269.0,5e-07]
[1721210713454,1.64726674,65270.0,65269.0,5e-07]
[1721210713659,1.65926674,65270.0,65269.0,5e-07]
[1721210713901,1.64726674,65270.0,65269.0,5e-07]
[1721210714301,1.65626674,65270.0,65269.0,5e-07]
[1721210714908,1.64226674,65270.0,65269.0,5e-07]
[1721210715400,1.65126674,65270.0,65269.0,5e-07]
[1721210717102,0.477628,65270.0,65269.0,5e-07]
[1721210717305,0.018,65270.0,65269.0,0.0009005]
[1721210717508,0.477628,65270.0,65269.0,0.0009005]
[1721210717678,0.784047,65270.0,65269.0,0.0009005]
[1721210718090,0.766047,65270.0,65269.0,0.0009005]
[1721210718243,0.775047,65270.0,65269.0,0.0009005]
[1721210718854,0.766047,65270.0,65269.0,0.0009005]
[1721210719053,0.767047,65270.0,65269.0,0.0009005]
[1721210719324,0.867047,65270.0,65269.0,0.0009005]
[1721210719796,0.254209,65270.0,65269.0,0.0009005]
[1721210720247,0.001,65270.0,65269.0,0.03057055]
[1721210720465,0.001,65270.0,65269.0,0.03257055]
[1721210720466,0.002,65270.0,65269.0,0.03257055]
[1721210720677,0.002,65270.0,65269.0,0.05557055]
[1721210720853,0.306373,65280.0,65269.0,0.05357055]
[1721210720854,0.153205,65272.0,65269.0,0.05357055]
[1721210721057,0.4771,65289.0,65270.0,0.21773627]
[1721210721262,0.153182,65282.0,65276.0,0.07717479]
[1721210721479,0.153182,65282.0,65277.0,0.02696343]
[1721210721680,0.306345,65286.0,65279.0,0.2228]
[1721210721681,0.153175,65285.0,65279.0,0.2228]
[1721210721883,0.153177,65284.0,65280.0,0.02606333]
[1721210722106,0.306343,65287.0,65281.0,0.05543199]
[1721210722328,0.153172,65286.0,65282.0,0.023]
[1721210722502,0.792432,65289.0,65285.0,0.2237]
[1721210722503,0.009,65289.0,65285.0,0.2237]
[1721210722708,0.15316,65291.0,65285.0,0.2237]
[1721210722709,0.153163,65290.0,65286.0,0.023]
[1721210722949,0.15316,65291.0,65286.0,0.023]
[1721210723247,0.15316,65291.0,65287.0,0.05282565]
[1721210723448,0.153163,65290.0,65288.0,0.023]
[1721210723574,0.163165,65289.0,65288.0,0.023]
[1721210724448,0.153165,65289.0,65288.0,0.023]
[1721210724852,0.153162,65290.0,65288.0,0.023]
[1721210725008,0.001,65290.0,65289.0,0.03135257]
[1721210725210,0.001,65290.0,65289.0,0.05435257]
[1721210725635,0.153158,65292.0,65289.0,0.05435257]
[1721210725836,0.153158,65292.0,65290.0,0.023]
[1721210726059,0.45948,65291.0,65290.0,0.023]
[1721210726616,0.45948,65291.0,65290.0,0.06018782]
[1721210727459,0.15316,65291.0,65290.0,0.06018782]
[1721210727633,0.15416,65291.0,65290.0,0.07418782]
[1721210727840,0.155,65291.0,65290.0,0.07418782]
[1721210728044,0.46132,65291.0,65290.0,0.07418782]
[1721210728928,0.46132,65291.0,65290.0,0.037]
[1721210729331,0.46232,65291.0,65290.0,0.05]